lending/lending_fUSD_20240411
["ID","MTS","AMOUNT","RATE_DAILY","PERIOD"]
[322188853,1712867462271,-500.0,0.00028219,2]
[322188854,1712867462279,-500.0,0.00028219,2]
[322188855,1712867462288,-500.0,0.00028219,2]
[322188856,1712867462297,-544.92,0.00028219,2]
[322188857,1712867462306,-500.0,0.00028219,2]
[322188858,1712867462319,-532.74,0.00028219,2]
[322188859,1712867462328,-500.0,0.00028219,2]
[322188860,1712867462338,-586.03519298,0.00028219,2]
[322188861,1712867462347,-500.0,0.00028219,2]
[322188862,1712867462356,-500.0,0.00028219,2]
[322188863,1712867462365,-500.0,0.00028219,2]
[322188864,1712867462374,-500.0,0.00028219,2]
[322188865,1712867462383,-500.0,0.00028219,2]
[322188866,1712867462392,-887.21,0.00028219,2]
[322188867,1712867462401,-500.0,0.00028219,2]
[322188868,1712867462410,-200.70683787,0.00028219,2]
[322188869,1712867462419,-300.0,0.00028219,2]
[322188870,1712867462428,-500.0,0.00028219,2]
[322188871,1712867462437,-500.0,0.00028219,2]
[322188872,1712867462446,-990.85,0.00028219,2]
[322188873,1712867462455,-500.0,0.00028219,2]
[322188874,1712867462464,-500.0,0.00028219,2]
[322188875,1712867462473,-500.0,0.00028219,2]
[322188876,1712867462482,-150.0,0.00028219,2]
[322188877,1712867462493,-620.93,0.00028219,2]
[322188878,1712867462502,-500.0,0.00028219,2]
[322188879,1712867462511,-500.0,0.00028219,2]
[322188880,1712867462520,-500.0,0.00028219,2]
[322188881,1712867462529,-500.0,0.00028219,2]
[322188882,1712867462538,-500.0,0.00028219,2]
[322188883,1712867462547,-500.0,0.00028219,2]
[322188884,1712867462556,-500.0,0.00028219,2]
[322188885,1712867462569,-622.93,0.00028219,2]
[322188886,1712867462579,-500.0,0.00028219,2]
[322188887,1712867462589,-188.49572264,0.00028219,2]
[322188888,1712867462598,-500.0,0.00028219,2]
[322188889,1712867462607,-500.0,0.00028219,2]
[322188890,1712867462616,-500.0,0.00028219,2]
[322188891,1712867462626,-500.0,0.00028219,2]
[322188892,1712867462635,-500.0,0.00028219,2]
[322188893,1712867462645,-500.0,0.00028219,2]
[322188894,1712867462657,-500.0,0.00028219,2]
[322188895,1712867462666,-500.0,0.00028219,2]
[322188896,1712867462675,-668.04,0.00028219,2]
[322188897,1712867462684,-742.31,0.00028219,2]
[322188898,1712867462694,-500.0,0.00028219,2]
[322188899,1712867462703,-500.0,0.00028219,2]
[322188900,1712867462712,-965.5,0.00028219,2]
[322188901,1712867462721,-461.83570331,0.00028219,2]
[322188902,1712867462730,-500.0,0.00028219,2]
[322188903,1712867462740,-500.0,0.00028219,2]
[322188904,1712867462750,-500.0,0.00028219,2]
[322188905,1712867462759,-500.0,0.00028219,2]
[322188906,1712867462768,-945.95,0.00028219,2]
[322188907,1712867462777,-500.0,0.00028219,2]
[322188908,1712867462786,-583.56,0.00028219,2]
[322188909,1712867462795,-1002.15,0.00028219,2]
[322188910,1712867462804,-519.46,0.00028219,2]
[322188911,1712867462815,-556.71,0.00028219,2]
[322188912,1712867462825,-595.13145707,0.00028219,2]
[322188913,1712867462835,-500.0,0.00028219,2]
[322188914,1712867462844,-500.0,0.00028219,2]
[322188915,1712867462854,-334.87024472,0.00028219,2]
[322188916,1712867462863,-634.1,0.00028219,2]
[322188917,1712867462872,-500.0,0.00028219,2]
[322188918,1712867462881,-500.0,0.00028219,2]
[322188919,1712867462890,-559.63,0.00028219,2]
[322188920,1712867462899,-628.42,0.00028219,2]
[322188921,1712867462909,-1123.24,0.00028219,2]
[322188922,1712867462918,-500.0,0.00028219,2]
[322188923,1712867462927,-329.38529449,0.00028219,2]
[322188924,1712867462937,-500.0,0.00028219,2]
[322188925,1712867462946,-500.0,0.00028219,2]
[322188926,1712867462955,-534.1,0.00028219,2]
[322188927,1712867462964,-500.0,0.00028219,2]
[322188928,1712867462974,-704.77,0.00028219,2]
[322188929,1712867462982,-992.8,0.00028219,2]
[322188930,1712867462992,-500.0,0.00028219,2]
[322188931,1712867463001,-1290.55,0.00028219,2]
[322188932,1712867463010,-1083.69,0.00028219,2]
[322188933,1712867463019,-1239.02,0.00028219,2]
[322188934,1712867463029,-551.73808399,0.00028219,2]
[322188935,1712867463037,-500.0,0.00028219,2]
[322188936,1712867463047,-500.0,0.00028219,2]
[322188937,1712867463056,-951.26,0.00028219,2]
[322188938,1712867463067,-500.0,0.00028219,2]
[322188939,1712867463076,-1207.18,0.00028219,2]
[322188940,1712867463085,-500.0,0.00028219,2]
[322188941,1712867463094,-500.0,0.00028219,2]
[322188942,1712867463103,-1171.81,0.00028219,2]
[322188943,1712867463113,-500.0,0.00028219,2]
[322188944,1712867463122,-500.0,0.00028219,2]
[322188945,1712867463131,-592.65,0.00028219,2]
[322188946,1712867463140,-500.0,0.00028219,2]
[322188947,1712867463150,-826.25,0.00028219,2]
[322188948,1712867463159,-500.0,0.00028219,2]
[322188949,1712867463168,-1333.74,0.00028219,2]
[322188950,1712867463177,-1494.9,0.00028219,2]
[322188951,1712867463186,-500.0,0.00028219,2]
[322188952,1712867463195,-543.43,0.00028219,2]
[322188953,1712867463204,-500.0,0.00028219,2]
[322188954,1712867463214,-1163.74,0.00028219,2]
[322188955,1712867463223,-751.92,0.00028219,2]
[322188956,1712867463232,-701.34,0.00028219,2]
[322188957,1712867463241,-500.0,0.00028219,2]
[322188958,1712867463250,-500.0,0.00028219,2]
[322188959,1712867463259,-547.77,0.00028219,2]
[322188960,1712867463268,-500.0,0.00028219,2]
[322188961,1712867463277,-549.2,0.00028219,2]
[322188962,1712867463286,-1664.61,0.00028219,2]
[322188963,1712867463295,-500.0,0.00028219,2]
[322188964,1712867463304,-1556.34,0.00028219,2]
[322188965,1712867463314,-1379.25,0.00028219,2]
[322188966,1712867463323,-500.0,0.00028219,2]
[322188967,1712867463332,-344.97897697,0.00028219,2]
[322188968,1712867463341,-1158.04,0.00028219,2]
[322188969,1712867463350,-500.0,0.00028219,2]
[322188970,1712867463360,-500.0,0.00028219,2]
[322188971,1712867463369,-500.0,0.00028219,2]
[322188972,1712867463378,-762.51,0.00028219,2]
[322188973,1712867463387,-537.47,0.00028219,2]
[322188974,1712867463397,-785.01,0.00028219,2]
[322188975,1712867463406,-577.76,0.00028219,2]
[322188976,1712867463415,-864.22,0.00028219,2]
[322188977,1712867463424,-500.0,0.00028219,2]
[322188978,1712867463433,-500.0,0.00028219,2]
[322188979,1712867463443,-621.4,0.00028219,2]
[322188980,1712867463452,-865.71,0.00028219,2]
[322188981,1712867463462,-500.0,0.00028219,2]
[322188982,1712867463472,-500.0,0.00028219,2]
[322188983,1712867463481,-603.97,0.00028219,2]
[322188984,1712867463490,-2147.01,0.00028219,2]
[322188985,1712867463499,-585.65,0.00028219,2]
[322188986,1712867463508,-1001.68,0.00028219,2]
[322188987,1712867463517,-500.0,0.00028219,2]
[322188988,1712867463527,-500.0,0.00028219,2]
[322188989,1712867463536,-827.73,0.00028219,2]
[322188990,1712867463548,-500.0,0.00028219,2]
[322188991,1712867463557,-971.76,0.00028219,2]
[322188992,1712867463569,-500.0,0.00028219,2]
[322188993,1712867463579,-1030.34,0.00028219,2]
[322188994,1712867463589,-1095.87,0.00028219,2]
[322188995,1712867463599,-500.0,0.00028219,2]
[322188996,1712867463608,-500.0,0.00028219,2]
[322188997,1712867463618,-785.0,0.00028219,2]
[322188998,1712867463628,-197.98481278,0.00028219,2]
[322188999,1712867463637,-500.0,0.00028219,2]
[322189000,1712867463647,-500.0,0.00028219,2]
[322189001,1712867463658,-500.0,0.00028219,2]
[322189002,1712867463670,-1244.87,0.00028219,2]
[322189003,1712867463680,-500.0,0.00028219,2]
[322189004,1712867463690,-500.0,0.00028219,2]
[322189005,1712867463699,-151.31138887,0.00028219,2]
[322189006,1712867463710,-685.88,0.00028219,2]
[322189007,1712867463720,-1136.76,0.00028219,2]
[322189008,1712867463730,-500.0,0.00028219,2]
[322189009,1712867463740,-500.0,0.00028219,2]
[322189010,1712867463750,-780.81,0.00028219,2]
[322189011,1712867463760,-972.84,0.00028219,2]
[322189012,1712867463769,-749.17486098,0.00028219,2]
[322189013,1712867464440,-500.0,0.00027397,2]
[322189014,1712867464449,-94.84513902,0.00028219,2]
[322189015,1712867464458,-43.01438383,0.00028219,2]
[322189016,1712867464470,-594.70561617,0.00028219,2]
[322189017,1712867464479,-1508.08,0.00028219,2]
[322189018,1712867464487,-596.74,0.00028219,2]
[322189019,1712867464498,-500.0,0.00028219,2]
[322189020,1712867464507,-582.75825618,0.00028219,2]
[322189021,1712867464516,-500.0,0.00028219,2]
[322189022,1712867464525,-500.0,0.00028219,2]
[322189023,1712867464534,-500.0,0.00028219,2]
[322189024,1712867464543,-500.0,0.00028219,2]
[322189025,1712867464552,-925.5,0.00028219,2]
[322189026,1712867464564,-652.52,0.00028219,2]
[322189027,1712867464573,-500.0,0.00028219,2]
[322189028,1712867464582,-194.5471648,0.00028219,2]
[322189029,1712867464591,-1437.53,0.00028219,2]
[322189030,1712867464600,-500.0,0.00028219,2]
[322189031,1712867464609,-500.0,0.00028219,2]
[322189032,1712867464619,-1869.16,0.00028219,2]
[322189033,1712867464628,-543.82,0.00028219,2]
[322189034,1712867464637,-500.0,0.00028219,2]
[322189035,1712867464647,-500.0,0.00028219,2]
[322189036,1712867464656,-500.0,0.00028219,2]
[322189037,1712867464669,-1006.41,0.00028219,2]
[322189038,1712867464679,-500.0,0.00028219,2]
[322189039,1712867464697,-1036.35,0.00028219,2]
[322189040,1712867464707,-500.0,0.00028219,2]
[322189041,1712867464716,-1152.84,0.00028219,2]
[322189042,1712867464725,-536.23,0.00028219,2]
[322189043,1712867464735,-2403.83,0.00028219,2]
[322189044,1712867464745,-599.78,0.00028219,2]
[322189045,1712867464754,-500.0,0.00028219,2]
[322189046,1712867464763,-500.0,0.00028219,2]
[322189047,1712867464773,-720.84,0.00028219,2]
[322189048,1712867464782,-655.03,0.00028219,2]
[322189049,1712867464794,-500.0,0.00028219,2]
[322189050,1712867464808,-1708.49,0.00028219,2]
[322189051,1712867464818,-500.0,0.00028219,2]
[322189052,1712867464828,-609.59,0.00028219,2]
[322189053,1712867464837,-1102.25,0.00028219,2]
[322189054,1712867464846,-500.0,0.00028219,2]
[322189055,1712867464855,-500.0,0.00028219,2]
[322189056,1712867464865,-1332.84,0.00028219,2]
[322189057,1712867464875,-500.0,0.00028219,2]
[322189058,1712867464884,-1302.8,0.00028219,2]
[322189059,1712867464893,-486.42010487,0.00028219,2]
[322189060,1712867464902,-500.0,0.00028219,2]
[322189061,1712867464911,-500.0,0.00028219,2]
[322189062,1712867464920,-500.0,0.00028219,2]
[322189063,1712867464929,-500.0,0.00028219,2]
[322189064,1712867464940,-785.2,0.00028219,2]
[322189065,1712867464949,-559.06,0.00028219,2]
[322189066,1712867464959,-500.0,0.00028219,2]
[322189067,1712867464968,-500.0,0.00028219,2]
[322189068,1712867464977,-831.89,0.00028219,2]
[322189069,1712867464986,-182.93932225,0.00028219,2]
[322189070,1712867464995,-539.44,0.00028219,2]
[322189071,1712867465005,-1448.5,0.00028219,2]
[322189072,1712867465014,-577.66,0.00028219,2]
[322189073,1712867465023,-248.14524439,0.00028219,2]
[322189074,1712867465032,-500.0,0.00028219,2]
[322189075,1712867465042,-823.04,0.00028219,2]
[322189076,1712867465052,-1927.25,0.00028219,2]
[322189077,1712867465062,-500.0,0.00028219,2]
[322189078,1712867465072,-500.0,0.00028219,2]
[322189079,1712867465081,-894.11,0.00028219,2]
[322189080,1712867465091,-783.0,0.00028219,2]
[322189081,1712867465101,-500.0,0.00028219,2]
[322189082,1712867465111,-500.0,0.00028219,2]
[322189083,1712867465120,-1633.78,0.00028219,2]
[322189084,1712867465130,-500.0,0.00028219,2]
[322189085,1712867465139,-500.0,0.00028219,2]
[322189086,1712867465149,-1373.75,0.00028219,2]
[322189087,1712867465158,-526.10281602,0.00028219,2]
[322189088,1712867465168,-1361.56,0.00028219,2]
[322189089,1712867465177,-1603.87,0.00028219,2]
[322189090,1712867465188,-500.0,0.00028219,2]
[322189091,1712867465197,-500.0,0.00028219,2]
[322189092,1712867465207,-500.0,0.00028219,2]
[322189093,1712867465216,-516.78,0.00028219,2]
[322189094,1712867465225,-692.27,0.00028219,2]
[322189095,1712867465235,-776.99,0.00028219,2]
[322189096,1712867465244,-1068.23,0.00028219,2]
[322189097,1712867465254,-500.0,0.00028219,2]
[322189098,1712867465263,-500.0,0.00028219,2]
[322189099,1712867465273,-872.26,0.00028219,2]
[322189100,1712867465283,-500.0,0.00028219,2]
[322189101,1712867465292,-500.0,0.00028219,2]
[322189102,1712867465302,-791.65,0.00028219,2]
[322189103,1712867465311,-500.0,0.00028219,2]
[322189104,1712867465322,-1361.19,0.00028219,2]
[322189105,1712867465331,-945.38,0.00028219,2]
[322189106,1712867465340,-500.0,0.00028219,2]
[322189107,1712867465350,-643.89,0.00028219,2]
[322189108,1712867465359,-500.0,0.00028219,2]
[322189109,1712867465368,-1748.62,0.00028219,2]
[322189110,1712867465378,-500.0,0.00028219,2]
[322189111,1712867465387,-516.37,0.00028219,2]
[322189112,1712867465397,-500.0,0.00028219,2]
[322189113,1712867465406,-729.25,0.00028219,2]
[322189114,1712867465415,-1281.83,0.00028219,2]
[322189115,1712867465425,-1484.45,0.00028219,2]
[322189116,1712867465434,-500.0,0.00028219,2]
[322189117,1712867465444,-578.56431585,0.00028219,2]
[322189118,1712867465454,-500.0,0.00028219,2]
[322189119,1712867465463,-882.78,0.00028219,2]
[322189120,1712867465472,-500.0,0.00028219,2]
[322189121,1712867465481,-500.0,0.00028219,2]
[322189122,1712867465491,-500.0,0.00028219,2]
[322189123,1712867465500,-500.0,0.00028219,2]
[322189124,1712867465510,-921.03,0.00028219,2]
[322189125,1712867465519,-829.15,0.00028219,2]
[322189126,1712867465529,-500.0,0.00028219,2]
[322189127,1712867465538,-500.0,0.00028219,2]
[322189128,1712867465548,-1077.51,0.00028219,2]
[322189129,1712867465558,-840.25,0.00028219,2]
[322189130,1712867465569,-885.53,0.00028219,2]
[322189131,1712867465578,-500.0,0.00028219,2]
[322189132,1712867465587,-500.0,0.00028219,2]
[322189133,1712867465597,-941.92,0.00028219,2]
[322189134,1712867465606,-500.0,0.00028219,2]
[322189135,1712867465616,-814.36,0.00028219,2]
[322189136,1712867465626,-1149.74,0.00028219,2]
[322189137,1712867465636,-500.0,0.00028219,2]
[322189138,1712867465646,-602.99,0.00028219,2]
[322189139,1712867465656,-7207.69,0.00028219,2]
[322189140,1712867465670,-886.11,0.00028219,2]
[322189141,1712867465680,-665.07,0.00028219,2]
[322189142,1712867465689,-5744.79,0.00028219,2]
[322189143,1712867465699,-151.54957,0.00028219,7]
[322189144,1712867465709,-759.35,0.00028219,2]
[322189145,1712867465718,-1741.25,0.00028219,2]
[322189146,1712867465728,-3488.69,0.00028219,2]
[322189147,1712867465738,-500.0,0.00028219,2]
[322189148,1712867465747,-1728.63,0.00028219,2]
[322189149,1712867465757,-500.0,0.00028219,2]
[322189150,1712867465767,-2206.53,0.00028219,2]
[322189151,1712867465777,-500.0,0.00028219,2]
[322189152,1712867465787,-500.0,0.00028219,2]
[322189153,1712867465797,-4939.06,0.00028219,2]
[322189154,1712867465807,-903.44,0.00028219,2]
[322189155,1712867465817,-569.39,0.00028219,2]
[322189156,1712867465826,-2854.87,0.00028219,2]
[322189157,1712867465835,-1238.33,0.00028219,2]
[322189158,1712867465845,-1377.33,0.00028219,2]
[322189159,1712867465855,-1251.52,0.00028219,2]
[322189160,1712867465864,-500.0,0.00028219,2]
[322189161,1712867465874,-500.0,0.00028219,2]
[322189162,1712867465883,-2762.86,0.00028219,2]
[322189163,1712867465892,-2031.68,0.00028219,2]
[322189164,1712867465902,-4951.25,0.00028219,2]
[322189165,1712867465911,-1407.86,0.00028219,2]
[322189166,1712867465920,-500.0,0.00028219,2]
[322189167,1712867465930,-1127.31,0.00028219,2]
[322189168,1712867465939,-543.84,0.00028219,2]
[322189169,1712867465949,-1423.87,0.00028219,2]
[322189170,1712867465957,-1790.86,0.00028219,2]
[322189171,1712867465967,-561.84,0.00028219,2]
[322189172,1712867465976,-8701.03,0.00028219,2]
[322189173,1712867465985,-500.0,0.00028219,2]
[322189174,1712867465994,-500.0,0.00028219,2]
[322189175,1712867466003,-1108.55,0.00028219,2]
[322189176,1712867466013,-500.0,0.00028219,2]
[322189177,1712867466022,-1576.12,0.00028219,2]
[322189178,1712867466031,-7253.01,0.00028219,2]
[322189179,1712867466041,-500.0,0.00028219,2]
[322189180,1712867466050,-1033.59,0.00028219,2]
[322189181,1712867466060,-45059.41,0.00028219,2]
[322189182,1712867466070,-594.03,0.00028219,2]
[322189183,1712867466079,-11292.75,0.00028219,2]
[322189184,1712867466089,-4960.81,0.00028219,2]
[322189185,1712867466099,-767.19,0.00028219,2]
[322189186,1712867466109,-948.27,0.00028219,2]
[322189187,1712867466117,-1477.61,0.00028219,2]
[322189188,1712867466127,-3190.26,0.00028219,2]
[322189189,1712867466136,-535.56,0.00028219,2]
[322189190,1712867466146,-500.0,0.00028219,2]
[322189191,1712867466155,-2643.54,0.00028219,2]
[322189192,1712867466164,-10523.15,0.00028219,2]
[322189193,1712867466174,-2247.53,0.00028219,2]
[322189194,1712867466183,-500.0,0.00028219,2]
[322189195,1712867466193,-1391.72,0.00028219,2]
[322189196,1712867466202,-500.0,0.00028219,2]
[322189197,1712867466211,-2136.22,0.00028219,2]
[322189198,1712867466221,-8306.64,0.00028219,2]
[322189199,1712867466230,-2689.98,0.00028219,2]
[322189200,1712867466240,-623.76,0.00028219,2]
[322189201,1712867466249,-5108.44,0.00028219,2]
[322189202,1712867466258,-981.96,0.00028219,2]
[322189203,1712867466268,-2048.45,0.00028219,2]
[322189204,1712867466278,-1307.66,0.00028219,2]
[322189205,1712867466287,-500.0,0.00028219,2]
[322189206,1712867466300,-3912.28,0.00028219,2]
[322189207,1712867466309,-500.0,0.00028219,2]
[322189208,1712867466320,-1026.11,0.00028219,2]
[322189209,1712867466329,-833.0,0.00028219,2]
[322189210,1712867466338,-1599.07,0.00028219,2]
[322189211,1712867466348,-2633.61,0.00028219,2]
[322189212,1712867466357,-2930.86,0.00028219,2]
[322189213,1712867466367,-500.0,0.00028219,2]
[322189214,1712867466376,-2238.13,0.00028219,2]
[322189215,1712867466386,-2651.69,0.00028219,2]
[322189216,1712867466396,-2311.62,0.00028219,2]
[322189217,1712867466405,-5405.21,0.00028219,2]
[322189218,1712867466414,-700.69,0.00028219,2]
[322189219,1712867466424,-2643.62,0.00028219,2]
[322189220,1712867466433,-1089.15,0.00028219,2]
[322189221,1712867466442,-1382.04,0.00028219,2]
[322189222,1712867466451,-1226.83,0.00028219,2]
[322189223,1712867466460,-500.0,0.00028219,2]
[322189224,1712867466470,-2093.53,0.00028219,2]
[322189225,1712867466480,-2058.33,0.00028219,2]
[322189226,1712867466489,-1710.88,0.00028219,2]
[322189227,1712867466498,-500.0,0.00028219,2]
[322189228,1712867466507,-880.19,0.00028219,2]
[322189229,1712867466517,-847.87,0.00028219,2]
[322189230,1712867466527,-9724.22,0.00028219,2]
[322189231,1712867466539,-21675.68,0.00028219,2]
[322189232,1712867466550,-642.09,0.00028219,2]
[322189233,1712867466559,-769.81,0.00028219,2]
[322189234,1712867466569,-1979.15,0.00028219,2]
[322189235,1712867466579,-1373.89,0.00028219,2]
[322189236,1712867466588,-4375.9,0.00028219,2]
[322189237,1712867466598,-2723.9,0.00028219,2]
[322189238,1712867466608,-500.0,0.00028219,2]
[322189239,1712867466617,-585.34,0.00028219,2]
[322189240,1712867466627,-751.69,0.00028219,2]
[322189241,1712867466637,-3708.66,0.00028219,2]
[322189242,1712867466646,-2354.05,0.00028219,2]
[322189243,1712867466656,-950.63,0.00028219,2]
[322189244,1712867466669,-3133.07,0.00028219,2]
[322189245,1712867466679,-2610.98,0.00028219,2]
[322189246,1712867466688,-3220.82,0.00028219,2]
[322189247,1712867466698,-500.0,0.00028219,2]
[322189248,1712867466708,-2135.35,0.00028219,2]
[322189249,1712867466717,-623.2421572,0.00028219,2]
[322189250,1712867466726,-500.0,0.00028219,2]
[322189251,1712867466737,-832.55,0.00028219,2]
[322189252,1712867466746,-7479.23,0.00028219,2]
[322189253,1712867466756,-1428.05,0.00028219,2]
[322189254,1712867466766,-4483.2,0.00028219,2]
[322189255,1712867466775,-1762.59,0.00028219,2]
[322189256,1712867466785,-2545.7,0.00028219,2]
[322189257,1712867466794,-500.0,0.00028219,2]
[322189258,1712867466805,-1220.85,0.00028219,2]
[322189259,1712867466815,-2856.97,0.00028219,2]
[322189260,1712867466825,-500.0,0.00028219,2]
[322189261,1712867466836,-500.0,0.00028219,2]
[322189262,1712867466846,-500.0,0.00028219,2]
[322189263,1712867466856,-2970.94,0.00028219,2]
[322189264,1712867466866,-781.28,0.00028219,2]
[322189265,1712867466876,-500.0,0.00028219,2]
[322189266,1712867466886,-1713.54,0.00028219,2]
[322189267,1712867466896,-847.8,0.00028219,2]
[322189268,1712867466905,-500.0,0.00028219,2]
[322189269,1712867466915,-4514.4,0.00028219,2]
[322189270,1712867466925,-1336.56,0.00028219,2]
[322189271,1712867466934,-25396.15,0.00028219,2]
[322189272,1712867466944,-13709.84,0.00028219,2]
[322189273,1712867466954,-500.0,0.00028219,2]
[322189274,1712867466964,-1285.78,0.00028219,2]
[322189275,1712867466974,-2829.24,0.00028219,2]
[322189276,1712867466984,-1663.17,0.00028219,2]
[322189277,1712867466993,-12812.92,0.00028219,2]
[322189278,1712867467003,-1342.03,0.00028219,2]
[322189279,1712867467012,-934.94,0.00028219,2]
[322189280,1712867467021,-6132.15,0.00028219,2]
[322189281,1712867467030,-1011.13,0.00028219,2]
[322189282,1712867467040,-500.0,0.00028219,2]
[322189283,1712867467050,-3947.53,0.00028219,2]
[322189284,1712867467059,-2592.0,0.00028219,2]
[322189285,1712867467070,-1106.06,0.00028219,2]
[322189286,1712867467080,-1486.69,0.00028219,2]
[322189287,1712867467090,-6485.02,0.00028219,2]
[322189288,1712867467100,-6846.22,0.00028219,2]
[322189289,1712867467110,-1431.63,0.00028219,2]
[322189290,1712867467120,-5878.31,0.00028219,2]
[322189291,1712867467129,-4545.5,0.00028219,2]
[322189292,1712867467139,-662.12,0.00028219,2]
[322189293,1712867467148,-3428.9,0.00028219,2]
[322189294,1712867467158,-1543.26,0.00028219,2]
[322189295,1712867467168,-3434.82,0.00028219,2]
[322189296,1712867467178,-1070.32,0.00028219,2]
[322189297,1712867467188,-2366.08,0.00028219,2]
[322189298,1712867467197,-4269.08,0.00028219,2]
[322189299,1712867467207,-2149.44,0.00028219,2]
[322189300,1712867467216,-1852.92,0.00028219,2]
[322189301,1712867467225,-3446.29,0.00028219,2]
[322189302,1712867467235,-544.99,0.00028219,2]
[322189303,1712867467245,-995.75,0.00028219,2]
[322189304,1712867467254,-5122.61,0.00028219,2]
[322189305,1712867467265,-500.0,0.00028219,2]
[322189306,1712867467274,-1095.9,0.00028219,2]
[322189307,1712867467284,-1180.54,0.00028219,2]
[322189308,1712867467293,-1544.29,0.00028219,2]
[322189309,1712867467302,-500.0,0.00028219,2]
[322189310,1712867467312,-500.0,0.00028219,2]
[322189311,1712867467323,-2401.1,0.00028219,2]
[322189312,1712867467332,-1832.36,0.00028219,2]
[322189313,1712867467342,-1233.74,0.00028219,2]
[322189314,1712867467352,-2161.16,0.00028219,2]
[322189315,1712867467361,-500.0,0.00028219,2]
[322189316,1712867467371,-857.09,0.00028219,2]
[322189317,1712867467380,-5080.68,0.00028219,2]
[322189318,1712867467390,-622.06,0.00028219,2]
[322189319,1712867467399,-500.0,0.00028219,2]
[322189320,1712867467409,-2317.05,0.00028219,2]
[322189321,1712867467419,-500.0,0.00028219,2]
[322189322,1712867467428,-848.59,0.00028219,2]
[322189323,1712867467438,-21491.36,0.00028219,2]
[322189324,1712867467447,-3192.1,0.00028219,2]
[322189325,1712867467456,-500.0,0.00028219,2]
[322189326,1712867467466,-2961.37,0.00028219,2]
[322189327,1712867467475,-1345.8,0.00028219,2]
[322189328,1712867467484,-748.46,0.00028219,2]
[322189329,1712867467493,-1809.68,0.00028219,2]
[322189330,1712867467502,-500.0,0.00028219,2]
[322189331,1712867467512,-4954.31,0.00028219,2]
[322189332,1712867467522,-701.0,0.00028219,2]
[322189333,1712867467531,-500.0,0.00028219,2]
[322189334,1712867467541,-699.32,0.00028219,2]
[322189335,1712867467550,-1534.33,0.00028219,2]
[322189336,1712867467560,-500.0,0.00028219,2]
[322189337,1712867467571,-2539.82,0.00028219,2]
[322189338,1712867467581,-500.0,0.00028219,2]
[322189339,1712867467590,-877.83,0.00028219,2]
[322189340,1712867467599,-841.46,0.00028219,2]
[322189341,1712867467609,-1784.53,0.00028219,2]
[322189342,1712867467618,-1297.45,0.00028219,2]
[322189343,1712867467628,-3680.38,0.00028219,2]
[322189344,1712867467637,-500.0,0.00028219,2]
[322189345,1712867467646,-500.0,0.00028219,2]
[322189346,1712867467656,-815.85,0.00028219,2]
[322189347,1712867467670,-500.0,0.00028219,2]
[322189348,1712867467680,-500.0,0.00028219,2]
[322189349,1712867467689,-1032.58,0.00028219,2]
[322189350,1712867467698,-5143.08,0.00028219,2]
[322189351,1712867467707,-500.0,0.00028219,2]
[322189352,1712867467716,-759.6,0.00028219,2]